bitfinex/quotes_SOLUSD_20250802
["timestamp","ask_amount","ask_price","bid_price","bid_amount"]
[1754161659667,54.16139146,156.89,156.88,0.06]
[1754161660692,101.68139146,156.89,156.88,0.06]
[1754161663687,54.16139146,156.89,156.88,0.06]
[1754161663875,53.48139146,156.89,156.88,0.06]
[1754161664076,36.87784926,156.89,156.88,0.75]
[1754161664273,26.0,156.91,156.88,0.75]
[1754161664509,48.15669935,156.93,156.88,0.75]
[1754161664510,36.87784926,156.94,156.89,36.87784926]
[1754161664676,36.87784926,156.93,156.9,0.69]
[1754161664877,52.0456291,156.98,156.91,0.69]
[1754161664878,26.0,156.95,156.91,0.69]
[1754161665104,24.93071479,156.92,156.91,0.69]
[1754161665491,24.93071479,156.93,156.91,0.69]
[1754161665818,41.71539876,156.92,156.88,0.75]
[1754161665984,41.71539876,156.89,156.88,0.06]
[1754161666977,16.78468397,156.89,156.88,0.06]
[1754161667180,41.71539876,156.89,156.88,0.06]
[1754161667394,68.35209811,156.89,156.88,0.06]
[1754161667795,69.03209811,156.89,156.88,0.06]
[1754161668020,43.03209811,156.89,156.88,0.06]
[1754161668506,68.35209811,156.89,156.88,0.06]
[1754161668678,67.71539876,156.89,156.88,0.06]
[1754161668878,67.71539876,156.89,156.88,0.75]
[1754161669078,42.78468397,156.89,156.88,0.75]
[1754161669305,24.93071479,156.91,156.88,0.75]
[1754161669517,0.63669935,156.93,156.88,0.75]
[1754161669803,48.13669935,156.97,156.88,25.68071479]
[1754161669975,16.78468397,156.93,156.89,0.69]
[1754161670179,42.78468397,156.93,156.89,0.69]
[1754161670604,67.71539876,156.93,156.89,0.69]
[1754161670818,67.71539876,156.93,156.9,0.69]
[1754161671307,24.93071479,156.91,156.88,0.06]
[1754161671508,24.93071479,156.91,156.88,0.75]
[1754161671808,42.78468397,156.93,156.88,0.75]
[1754161671809,41.71539876,156.89,156.88,0.06]
[1754161672307,67.71539876,156.89,156.88,0.06]
[1754161672490,42.39539876,156.89,156.88,0.06]
[1754161673588,89.89539876,156.89,156.88,0.06]
[1754161675021,90.53209811,156.89,156.88,0.06]
[1754161675208,89.89539876,156.89,156.88,0.06]
[1754161676015,42.78468397,156.87,156.86,0.06]
[1754161676185,115.83209811,156.87,156.86,0.06]
[1754161676379,116.51209811,156.87,156.86,0.06]
[1754161676683,42.78468397,156.84,156.83,0.1]
[1754161676882,67.71539876,156.84,156.83,0.1]
[1754161679513,72.57636494,156.84,156.83,0.1]
[1754161679815,75.13415494,156.84,156.83,0.1]
[1754161680040,80.41243589,156.84,156.83,0.1]
[1754161680227,79.73243589,156.84,156.83,0.1]
[1754161680618,51.60723175,156.84,156.83,0.79]
[1754161680787,149.7,156.86,156.83,0.79]
[1754161680788,149.7,156.86,156.83,25.72071479]
[1754161680993,149.7,156.86,156.84,0.66]
[1754161681212,149.7,156.86,156.85,0.66]
[1754161681524,50.93071479,156.87,156.85,0.66]
[1754161682028,67.71539876,156.87,156.86,0.66]
[1754161682201,67.71539876,156.87,156.84,0.66]
[1754161682535,67.71539876,156.87,156.85,0.66]
[1754161682730,24.93071479,156.89,156.86,0.66]
[1754161682893,24.93071479,156.9,156.86,0.66]
[1754161683091,16.78468397,156.9,156.86,25.59071479]
[1754161683296,16.78468397,156.9,156.87,0.66]
[1754161683716,16.78468397,156.9,156.86,24.93071479]
[1754161683930,41.71539876,156.9,156.87,0.66]
[1754161684303,41.71539876,156.9,156.88,0.66]
[1754161684304,16.78468397,156.9,156.88,0.66]
[1754161684508,26.0,156.91,156.89,0.66]
[1754161684818,16.78468397,156.91,156.9,0.66]
[1754161685245,0.63669935,156.94,156.9,0.66]
[1754161685246,24.93071479,156.94,156.9,0.66]
[1754161685432,20.97683662,156.93,156.91,0.66]
[1754161685639,42.78468397,156.93,156.91,0.66]
[1754161685826,24.93071479,156.94,156.92,0.66]
[1754161685827,16.78468397,156.94,156.92,0.66]
[1754161686009,4.19537845,156.93,156.92,0.66]
[1754161686434,4.1999192,156.93,156.92,0.66]
[1754161687508,67.74539876,156.94,156.92,0.66]
[1754161688427,67.74539876,156.94,156.9,0.66]
[1754161688738,33.79188244,156.93,156.88,24.93071479]
[1754161688928,42.81468397,156.94,156.91,0.66]
[1754161689242,0.03,156.94,156.93,24.93071479]
[1754161689537,0.63669935,157.01,156.93,25.59071479]
[1754161689723,4.19472373,157.0,156.97,24.93071479]
[1754161690053,25.59741414,157.02,156.98,25.59071479]
[1754161690054,4.19472373,157.01,156.98,25.59071479]
[1754161690237,0.03,157.02,156.99,0.66]
[1754161690739,0.03,157.02,157.0,0.66]
[1754161690956,36.82898278,157.02,156.99,0.66]
[1754161691123,0.03,157.02,157.0,0.66]
[1754161691332,19.162595,157.01,157.0,0.66]
[1754161691652,0.03,157.02,157.0,0.66]
[1754161692020,0.03,157.02,156.98,36.79898278]
[1754161692021,0.03,157.02,156.97,37.45898278]
[1754161692218,0.03,157.02,156.98,0.66]
[1754161692416,16.78468397,157.01,156.98,0.66]
[1754161692721,16.78468397,157.01,156.96,0.66]
[1754161693130,16.78468397,157.01,156.97,0.66]
[1754161694043,16.78468397,157.01,156.98,0.66]
[1754161694243,16.78468397,157.01,156.94,48.09718618]
[1754161694551,16.78468397,157.01,156.96,37.45898278]
[1754161694852,16.78468397,157.01,156.97,0.66]
[1754161696530,16.78468397,157.01,156.98,0.66]
[1754161697667,26.66669935,157.02,156.99,0.66]
[1754161697830,26.0,157.01,156.99,0.66]
[1754161698631,26.0,157.01,156.97,37.45898278]
[1754161698826,26.0,157.01,156.98,0.66]
[1754161699227,0.03,157.02,156.99,37.45898278]
[1754161699433,16.81468397,157.02,156.99,0.66]
[1754161699635,16.81468397,157.02,157.0,0.66]
[1754161701437,16.81468397,157.02,156.98,36.79898278]
[1754161701438,0.03,157.02,157.01,0.66]
[1754161702252,0.03,157.02,156.98,0.63702382]
[1754161702253,36.82898278,157.02,156.98,0.66]
[1754161702439,0.03,157.02,156.98,36.79898278]
[1754161702633,0.03,157.02,156.99,0.66]
[1754161704578,0.03,157.02,157.0,37.45898278]
[1754161704931,0.03,157.02,157.01,0.66]
[1754161705371,0.03,157.02,156.99,84.21898278]
[1754161705372,0.03,157.02,156.98,1.29702382]
[1754161705550,0.03,157.02,156.99,47.4]
[1754161705732,0.03,157.02,156.99,48.06]
[1754161706065,0.03,157.02,157.0,0.66]
[1754161707379,0.03,157.02,156.99,47.4]
[1754161707574,0.03,157.02,157.01,0.66]
[1754161707981,0.03,157.02,156.99,48.06]
[1754161708165,0.03,157.02,156.99,47.4]
[1754161708355,0.03,157.02,157.0,0.66]
[1754161708552,0.03,157.02,157.01,37.43588488]
[1754161708984,0.03,157.02,157.01,38.09588488]
[1754161710588,37.49898278,157.02,156.96,0.66]
[1754161710750,37.49898278,157.02,156.96,48.06]
[1754161710751,24.90827408,157.0,156.96,48.06]
[1754161710959,24.90827408,156.99,156.96,48.1]
[1754161711470,0.03,157.02,156.97,25.60827408]
[1754161711772,24.90827408,157.0,156.97,0.7]
[1754161711957,24.90827408,156.99,156.96,47.4]
[1754161712155,24.90827408,156.99,156.96,48.1]
[1754161713051,24.90827408,157.0,156.96,48.1]
[1754161713556,0.72,157.02,156.98,24.90827408]
[1754161713557,0.03,157.02,156.98,24.90827408]
[1754161714189,0.03,157.02,156.96,47.4]
[1754161714190,0.03,157.02,157.01,24.90827408]
[1754161714394,0.03,157.02,157.01,47.4]
[1754161714592,0.03,157.02,157.01,48.1]
[1754161714888,0.03,157.02,157.01,73.00827408]
[1754161720366,0.03,157.02,157.01,0.7]
[1754161720564,0.03,157.02,157.01,47.38]
[1754161720762,0.03,157.02,157.01,72.92517618]
[1754161721079,0.03,157.02,157.01,73.62517618]
[1754161723498,0.03,157.02,156.93,18.48333389]
[1754161723499,0.03,157.02,156.97,0.7]
[1754161723654,0.72,157.02,156.97,26.24533848]
[1754161723860,0.72,157.02,156.98,72.28827408]
[1754161724061,0.72,157.02,156.98,47.38]
[1754161724296,0.72,157.02,156.98,72.28827408]
[1754161724594,0.72,157.02,156.99,24.90827408]
[1754161724958,0.72,157.02,156.98,47.38]
[1754161725166,0.72,157.02,156.98,72.28827408]
[1754161726188,0.03,157.02,156.98,72.28827408]
[1754161726388,0.03,157.02,156.99,24.90827408]
[1754161726589,0.03,157.02,157.0,47.36]
[1754161727685,0.03,157.03,157.01,26.24517618]
[1754161727869,0.03,157.03,157.02,72.26827408]
[1754161728196,0.03,157.03,157.02,72.96827408]
[1754161728908,0.03,157.03,157.02,73.60513562]
[1754161729485,0.03,157.03,157.02,72.90513562]
[1754161729680,0.03,157.03,157.02,72.96827408]
[1754161731023,0.03,157.03,157.02,73.60513562]
[1754161733327,0.03,157.03,157.02,72.26827408]
[1754161733819,0.03,157.03,157.02,72.96827408]
[1754161733991,0.03,157.03,157.02,48.06]
[1754161734187,0.03,157.03,157.02,72.96827408]
[1754161735517,0.03,157.04,157.02,79.97372094]
[1754161735721,0.1,157.08,157.06,26.0]
[1754161735920,0.03,157.09,157.07,115.68961686]
[1754161736126,0.03,157.09,157.08,24.90827408]
[1754161736488,0.03,157.09,157.08,25.60827408]
[1754161737822,0.03,157.09,157.07,0.63665881]
[1754161738015,0.03,157.09,157.08,72.26827408]
[1754161738186,0.72,157.09,157.07,24.90827408]
[1754161738393,0.03,157.09,157.08,47.34]
[1754161739113,0.72,157.09,157.08,47.34]
[1754161739895,0.03,157.09,157.08,72.24827408]
[1754161740224,0.03,157.09,157.08,47.34]
[1754161740421,0.03,157.09,157.08,72.24827408]
[1754161741826,0.03,157.09,157.08,72.93827408]
[1754161742111,0.03,157.09,157.08,72.24827408]
[1754161742633,0.03,157.09,157.08,72.93827408]
[1754161742921,0.03,157.09,157.08,115.26785041]
[1754161743122,0.03,157.09,157.08,90.35957633]
[1754161743284,0.2,157.11,157.08,121.63403324]
[1754161743488,0.2,157.11,157.09,25.59827408]
[1754161744646,0.2,157.11,157.09,26.23485183]
[1754161747295,0.2,157.11,157.09,47.95657775]
[1754161747501,0.2,157.11,157.09,72.86485183]
[1754161747714,0.2,157.11,157.09,72.74983683]
[1754161748301,0.2,157.11,157.09,47.84156275]
[1754161748502,2.0672216,157.1,157.09,47.32]
[1754161750402,1.3572216,157.1,157.09,47.32]
[1754161751816,2.0672216,157.1,157.09,47.32]
[1754161752345,16.78468397,157.09,157.0,24.90827408]
[1754161752545,24.90827408,157.06,157.0,24.90827408]
[1754161752710,25.61827408,157.06,157.01,47.32]
[1754161752912,0.71,157.05,157.01,47.32]
[1754161753143,17.53639832,157.09,157.01,72.22827408]
[1754161753307,17.53639832,157.09,157.04,24.90827408]
[1754161753308,24.90827408,157.09,157.04,24.90827408]
[1754161753512,25.61827408,157.08,157.05,47.3]
[1754161753849,24.90827408,157.08,157.05,47.3]
[1754161754162,25.61827408,157.08,157.05,47.3]
[1754161754630,1.3572216,157.1,157.07,24.90827408]
[1754161754829,1.3572216,157.1,157.08,72.86489236]
[1754161755212,1.3572216,157.1,157.09,24.90827408]
[1754161755424,1.3572216,157.1,157.09,25.59827408]
[1754161755624,1.3572216,157.1,157.09,24.90827408]
[1754161755833,1.3572216,157.1,157.09,25.59827408]
[1754161756930,1.3572216,157.1,157.09,42.38295805]
[1754161757650,26.26549568,157.1,157.05,24.90827408]
[1754161757848,0.71,157.09,157.05,24.90827408]
[1754161758058,0.71,157.09,157.06,47.3]
[1754161758352,0.71,157.08,157.06,47.3]
[1754161758849,26.26549568,157.1,157.06,47.3]
[1754161759053,1.3572216,157.1,157.06,47.3]
[1754161759246,1.3572216,157.1,157.06,72.89827408]
[1754161759760,1.3572216,157.1,157.06,72.20827408]
[1754161759937,1.3572216,157.1,157.07,0.69]
[1754161760137,1.3572216,157.1,157.08,47.3]
[1754161760953,0.71,157.09,157.08,47.3]
[1754161761121,1.3572216,157.1,157.08,47.3]
[1754161761553,0.71,157.09,157.03,26.0]
[1754161761733,0.71,157.09,157.04,72.20827408]
[1754161762148,0.71,157.09,157.04,72.89827408]
[1754161762361,0.71,157.09,157.05,24.90827408]
[1754161762562,0.71,157.09,156.98,19.60230314]
[1754161762563,24.90827408,157.07,157.06,47.3]
[1754161762857,25.61827408,157.07,157.06,47.3]
[1754161763356,0.71,157.07,157.06,47.3]
[1754161763529,24.90827408,157.08,157.06,47.3]
[1754161763955,25.61827408,157.08,157.06,47.3]
[1754161764544,24.90827408,157.09,157.06,47.3]
[1754161764960,25.61827408,157.09,157.06,47.3]
[1754161765225,0.71,157.09,157.06,47.3]
[1754161765649,0.71,157.09,157.06,47.36]
[1754161766259,1.3572216,157.1,157.07,24.90827408]
[1754161766478,27.3572216,157.1,157.07,25.59827408]
[1754161766686,1.3572216,157.1,157.07,25.59827408]
[1754161766875,1.3253916,157.1,157.08,25.59827408]
[1754161767049,1.3253916,157.1,157.09,47.3]
[1754161767686,26.94366568,157.1,157.06,0.06]
[1754161767976,0.71,157.09,157.07,47.3]
[1754161768152,1.3253916,157.1,157.07,47.3]
[1754161768354,0.71,157.09,157.07,47.3]
[1754161768558,52.23366568,157.1,157.07,47.3]
[1754161768758,0.71,157.08,157.07,47.3]
[1754161769064,24.90827408,157.09,157.07,47.3]
[1754161769265,25.61827408,157.09,157.07,47.3]
[1754161770081,52.23366568,157.1,157.07,47.3]
[1754161770868,1.3253916,157.1,157.07,47.98]
[1754161771261,1.3253916,157.1,157.07,47.3]
[1754161772474,0.72,157.09,157.07,47.3]
[1754161772683,25.62827408,157.09,157.07,47.3]
[1754161773051,1.3253916,157.1,157.07,47.3]
[1754161773269,24.90827408,157.09,157.07,47.3]
[1754161773657,1.3253916,157.1,157.07,47.98]
[1754161773868,26.23366568,157.1,157.07,47.3]
[1754161774087,42.41295805,157.09,157.07,47.3]
[1754161774797,52.23366568,157.1,157.07,47.3]
[1754161777911,52.95366568,157.1,157.07,47.3]
[1754161778209,27.3253916,157.1,157.07,47.98]
[1754161778498,1.3253916,157.1,157.08,25.58827408]
[1754161778698,1.3253916,157.1,157.09,0.68]
[1754161780018,1.3253916,157.1,157.09,26.22485183]
[1754161781523,1.3253916,157.1,157.09,1.31657775]
[1754161781698,1.3253916,157.1,157.09,26.22485183]
[1754161784707,1.3253916,157.1,157.09,73.50485183]
[1754161785280,0.03,157.12,157.09,73.50485183]
[1754161785281,0.03,157.12,157.11,16.78468397]
[1754161785420,0.2,157.16,157.14,26.0]
[1754161785617,0.2,157.16,157.15,89.58929276]
[1754161785787,0.1,157.17,157.16,16.78468397]
[1754161785984,0.1,157.17,157.16,42.14295805]
[1754161786439,0.1,157.17,157.15,47.89633471]
[1754161786440,0.1,157.17,157.15,0.63633471]
[1754161786606,0.1,157.17,157.16,26.0]
[1754161786928,0.1,157.17,157.16,47.26]
[1754161787106,0.82,157.17,157.16,47.26]
[1754161787490,25.72827408,157.17,157.16,47.26]
[1754161788684,25.72827408,157.17,157.1,26.0]
[1754161788685,25.72827408,157.17,157.06,0.06]
[1754161788923,24.90827408,157.14,157.09,24.90827408]
[1754161789125,18.25639832,157.16,157.06,0.06]
[1754161789126,43.1646724,157.13,157.06,0.06]
[1754161789325,0.72,157.13,157.1,24.90827408]
[1754161789533,0.1,157.17,157.07,47.26]
[1754161789534,0.85171435,157.17,157.11,72.16827408]
[1754161789697,0.85171435,157.17,157.08,1.08661828]
[1754161789698,17.50468397,157.16,157.12,72.14827408]
[1754161789895,24.90827408,157.14,157.12,47.24]
[1754161790140,0.72,157.13,157.12,47.24]
[1754161790695,43.1646724,157.13,157.12,47.24]
[1754161791032,42.41295805,157.13,157.12,47.24]
[1754161791393,16.78468397,157.12,157.09,47.24]
[1754161791596,24.90827408,157.1,157.09,47.24]
[1754161791929,0.72,157.1,157.09,47.24]
[1754161793316,25.62827408,157.1,157.09,47.24]
[1754161793502,25.62827408,157.1,157.06,0.06]
[1754161793707,0.72,157.09,157.07,47.24]
[1754161794823,25.62827408,157.11,157.07,47.24]
[1754161795127,25.62827408,157.11,157.07,72.14827408]
[1754161795128,0.72,157.11,157.07,72.14827408]
[1754161796215,25.62827408,157.1,157.07,47.24]
[1754161796437,0.72,157.09,157.07,47.24]
[1754161796942,24.90827408,157.11,157.07,47.24]
[1754161796943,25.62827408,157.11,157.07,47.24]
[1754161797127,1.47171435,157.13,157.07,47.24]
[1754161797330,1.47171435,157.13,157.07,72.14827408]
[1754161797331,24.93827408,157.12,157.07,72.14827408]
[1754161797650,0.72,157.11,157.08,26.0]
[1754161798156,0.72,157.11,157.07,72.14827408]
[1754161798833,0.72,157.11,157.07,47.24]
[1754161798834,0.72,157.1,157.07,47.24]
[1754161799242,24.90827408,157.08,157.06,0.06]
[1754161799547,25.62827408,157.09,157.07,47.24]
[1754161799714,0.72,157.08,157.07,47.24]
[1754161800125,24.90827408,157.09,157.07,47.24]
[1754161800449,25.62827408,157.08,157.07,47.24]
[1754161800758,16.78468397,157.07,157.06,0.06]
[1754161801064,16.78468397,157.05,156.97,0.06]
[1754161801352,24.90827408,156.98,156.97,0.06]
[1754161801728,0.75171435,157.02,156.97,0.06]
[1754161801729,0.67,157.0,156.97,0.06]
[1754161801929,24.90827408,157.0,156.97,0.06]
[1754161802134,24.90827408,157.02,156.97,24.96827408]
[1754161802320,24.90827408,157.02,156.97,0.69]
[1754161802517,25.57827408,157.02,156.97,0.06]
[1754161802839,0.67,157.02,156.98,24.90827408]
[1754161803151,0.67,157.04,156.98,24.90827408]
[1754161803326,24.90827408,157.03,156.97,24.96827408]
[1754161803661,0.67,157.05,157.0,24.90827408]
[1754161803946,0.75171435,157.06,157.01,47.24]
[1754161804167,24.90827408,157.05,157.01,47.24]
[1754161804338,4.94782178,157.1,157.01,72.85827408]
[1754161804339,24.90827408,157.06,157.01,72.85827408]
[1754161804546,24.90827408,157.04,157.01,47.24]
[1754161804862,24.90827408,157.03,157.01,47.24]
[1754161805243,24.90827408,157.02,157.01,47.24]
[1754161806957,16.78468397,157.01,156.97,0.06]
[1754161807159,24.90827408,156.98,156.97,0.06]
[1754161808647,24.90827408,156.99,156.97,0.06]
[1754161809764,24.90827408,156.98,156.97,0.06]
[1754161809934,24.90827408,157.0,156.97,0.77]
[1754161810532,24.90827408,157.02,156.98,0.71]
[1754161811254,24.90827408,157.01,156.97,0.06]
[1754161811465,25.57827408,157.02,156.97,0.77]
[1754161811647,25.57827408,157.01,156.97,0.06]
[1754161812448,16.78468397,156.98,156.97,0.06]
[1754161812678,41.69295805,156.98,156.97,0.06]
[1754161812855,43.1146724,156.98,156.97,0.06]
[1754161814393,41.69295805,156.98,156.97,0.06]
[1754161814554,43.1146724,156.98,156.97,0.06]
[1754161816880,42.36295805,156.98,156.97,0.06]
[1754161817177,41.69295805,156.98,156.97,0.06]
[1754161817473,24.90827408,157.01,156.97,0.77]
[1754161817679,24.90827408,157.02,156.97,25.67827408]
[1754161817845,25.57827408,157.02,156.98,47.24]
[1754161818352,26.32998843,157.01,156.98,47.24]
[1754161818565,16.78468397,157.02,156.98,72.85827408]
[1754161818888,41.69295805,157.02,156.98,47.95]
[1754161819384,25.65998843,157.03,156.98,72.85827408]
[1754161819552,26.32998843,157.03,156.98,72.85827408]
[1754161819752,0.67,157.02,156.98,47.24]
[1754161820063,42.36295805,157.02,156.98,47.24]
[1754161820265,25.57827408,157.01,156.98,47.24]
[1754161820872,16.78468397,157.02,156.98,47.24]
[1754161821058,16.78468397,157.02,156.98,47.95]
[1754161821761,24.90827408,157.03,156.99,0.71]
[1754161821976,26.32998843,157.05,157.0,24.90827408]
[1754161822288,24.90827408,157.06,157.01,25.61827408]
[1754161822584,26.32998843,157.06,157.02,47.24]
[1754161822800,24.90827408,157.05,157.02,47.24]
[1754161822979,25.57827408,157.04,157.02,47.24]
[1754161823987,24.90827408,157.04,157.02,47.24]
[1754161824154,43.1146724,157.03,157.01,47.22]
[1754161824763,16.78468397,157.04,157.01,47.22]
[1754161825081,25.65998843,157.05,157.01,47.93]
[1754161825301,26.32998843,157.05,157.01,47.22]
[1754161825492,24.90827408,157.03,157.01,47.22]
[1754161825661,26.32998843,157.03,157.01,47.22]
[1754161826681,0.75171435,157.03,157.01,47.22]
[1754161826892,25.65998843,157.03,157.01,47.22]
[1754161827099,26.32998843,157.03,157.01,47.22]
[1754161827995,42.36295805,157.02,157.01,47.22]
[1754161828288,41.69295805,157.02,157.01,47.22]
[1754161829471,42.36295805,157.02,157.01,47.22]
[1754161830580,41.69295805,157.02,157.01,47.22]
[1754161833415,42.37295805,157.02,157.01,47.22]
[1754161833873,41.69295805,157.02,157.01,47.22]
[1754161834775,14.67245175,157.02,157.01,47.22]
[1754161836276,16.78468397,157.02,157.01,47.22]
[1754161836973,0.03,157.03,157.01,47.22]
[1754161837176,16.78468397,157.02,157.01,47.22]
[1754161837897,0.03,157.03,157.01,62.60245175]
[1754161838072,0.03,157.03,157.01,61.89245175]
[1754161838272,0.03,157.03,157.02,0.71]
[1754161838670,0.03,157.03,157.02,15.38245175]
[1754161839173,0.03,157.03,157.02,16.01931329]
[1754161840281,0.03,157.03,157.02,15.38245175]
[1754161843486,0.03,157.03,157.02,0.71]
[1754161843691,0.03,157.03,157.02,41.38245175]
[1754161843876,0.03,157.03,157.02,47.89]
[1754161844080,0.03,157.03,157.02,62.56245175]
[1754161844910,0.03,157.05,157.02,88.56245175]
[1754161845106,0.03,157.05,157.04,40.67245175]
[1754161845347,0.03,157.09,157.04,61.83245175]
[1754161845516,0.03,157.09,157.05,1.34673989]
[1754161845809,0.03,157.09,157.06,47.16]
[1754161846013,0.03,157.09,157.07,0.63665881]
[1754161846215,0.03,157.09,157.08,47.16]
[1754161846405,0.03,157.09,157.08,47.87]
[1754161847582,0.03,157.09,157.08,62.54245175]
[1754161849725,0.03,157.09,157.08,61.83245175]
[1754161853235,0.03,157.09,157.08,47.16]
[1754161853725,0.71,157.09,157.08,47.12]
[1754161853934,0.71,157.09,157.04,1.34678043]
[1754161854232,0.03,157.09,157.07,14.67245175]
[1754161854417,0.03,157.09,157.08,47.12]
[1754161854724,31.48713572,157.09,157.08,47.12]
[1754161855097,32.16713572,157.09,157.08,47.12]
[1754161855597,16.78468397,157.08,157.03,14.67245175]
[1754161855829,17.46468397,157.08,157.04,47.12]
[1754161856027,16.78468397,157.08,157.04,47.12]
[1754161856326,0.68,157.07,157.04,47.12]
[1754161857729,0.68,157.06,157.04,47.12]
[1754161860125,0.68,157.05,157.0,14.67245175]
[1754161860431,0.78171435,157.09,157.04,14.67245175]
[1754161860432,16.78468397,157.08,157.04,14.67245175]
[1754161860606,0.71,157.09,157.06,14.67245175]
[1754161860813,0.71,157.09,157.07,47.1]
[1754161861329,0.72,157.08,157.07,47.1]
[1754161861992,16.81468397,157.09,157.07,47.1]
[1754161862632,0.03,157.09,157.08,41.38245175]
[1754161862842,0.03,157.09,157.08,42.01907003]
[1754161862996,0.03,157.09,157.08,56.69152178]
[1754161863198,0.03,157.09,157.08,30.69152178]
[1754161863523,0.03,157.09,157.08,1.34661828]
[1754161863839,0.03,157.09,157.08,16.01907003]
[1754161864008,0.03,157.09,157.08,30.69152178]
[1754161864231,0.03,157.1,157.09,26.0]
[1754161864558,0.03,157.1,157.09,88.46245175]
[1754161876368,0.03,157.12,157.1,16.78468397]
[1754161876676,0.1,157.17,157.14,26.0]
[1754161876974,0.1,157.17,157.16,14.67245175]
[1754161877139,0.1,157.17,157.16,40.67245175]
[1754161877474,0.1,157.17,157.16,15.38245175]
[1754161878672,0.1,157.19,157.18,26.0]
[1754161878877,0.1,157.19,157.18,88.328665]
[1754161879202,0.1,157.24,157.23,14.67245175]
[1754161879402,0.1,157.24,157.23,62.32846268]
[1754161879564,0.1,157.24,157.23,63.03846268]
[1754161879766,0.1,157.25,157.23,63.03846268]
[1754161879988,0.1,157.25,157.24,41.38245175]
[1754161880164,0.1,157.25,157.24,87.67245175]
[1754161880363,0.1,157.25,157.24,89.01842224]
[1754161881177,0.1,157.25,157.24,41.30842224]
[1754161881375,0.82,157.25,157.24,47.0]
[1754161882979,16.78468397,157.24,157.17,45.9]
[1754161883291,15.39245175,157.23,157.18,61.67245175]
[1754161883489,0.72,157.22,157.18,61.67245175]
[1754161883793,0.72,157.22,157.19,14.67245175]
[1754161883971,0.72,157.22,157.2,46.98]
[1754161884306,0.72,157.21,157.2,61.65245175]
[1754161884789,0.72,157.21,157.2,46.98]
[1754161885596,0.82,157.25,157.2,61.65245175]
[1754161885890,0.82,157.25,157.22,14.67245175]
[1754161886095,0.82,157.25,157.23,46.98]
[1754161886293,0.82,157.25,157.24,46.98]
[1754161888075,15.49245175,157.25,157.24,46.98]
[1754161888662,15.49245175,157.25,157.24,46.96]
[1754161889570,14.99245175,157.25,157.24,46.96]
[1754161891509,0.03,157.27,157.26,26.0]
[1754161891675,0.03,157.27,157.26,62.97834135]
[1754161891873,0.03,157.27,157.26,47.67]
[1754161892081,0.03,157.27,157.26,61.63245175]
[1754161892487,0.03,157.27,157.26,62.34245175]
[1754161892691,0.03,157.27,157.26,62.97834135]
[1754161892905,0.03,157.27,157.26,73.10582201]
[1754161893110,0.03,157.27,157.26,99.10582201]
[1754161893318,0.75171435,157.4,157.26,99.10582201]
[1754161893615,25.48993241,157.39,157.34,24.79993241]
[1754161893778,0.69,157.38,157.35,46.96]
[1754161893980,24.79993241,157.39,157.35,46.96]
[1754161893981,0.69,157.37,157.35,46.96]
[1754161894197,0.69,157.39,157.35,46.96]
[1754161894397,0.69,157.38,157.36,24.79993241]
[1754161894596,0.69,157.38,157.37,46.94]
[1754161894905,0.69,157.38,157.37,71.73993241]
[1754161895089,17.47468397,157.4,157.37,71.73993241]
[1754161895700,2.07893595,157.42,157.38,24.79993241]
[1754161895902,2.0172216,157.42,157.39,71.73993241]
[1754161896098,2.0172216,157.42,157.4,46.94]